fUSD/lending_fUSD_20251201
["ID","MTS","AMOUNT","RATE_DAILY","PERIOD"]
[395248577,1764568237865,-623293.03796716,0.00012785,2]
[395248578,1764568237874,-150.0,0.00012792,2]
[395248579,1764568237883,-6227.699,0.00012793,2]
[395248580,1764568237894,-270.802,0.00012793,2]
[395248581,1764568237905,-36696.25539657,0.00012793,2]
[395248582,1764568237919,-13970.72633566,0.00012793,2]
[395248583,1764568237927,-2500.0,0.00012793,2]
[395248584,1764568237936,-500.0,0.00012873,2]
[395248585,1764568237946,-295.21198684,0.00012873,2]
[395248586,1764568237957,-500.0,0.00012873,2]
[395248587,1764568237966,-500.0,0.00012873,2]
[395248588,1764568237975,-500.0,0.00012873,2]
[395248589,1764568237984,-500.0,0.00012873,2]
[395248590,1764568237993,-500.0,0.00012873,2]
[395248591,1764568238002,-500.0,0.00012873,2]
[395248592,1764568238011,-500.0,0.00012873,2]
[395248593,1764568238020,-500.0,0.00012873,2]
[395248594,1764568238030,-500.0,0.00012873,2]
[395248595,1764568238039,-500.0,0.00012873,2]
[395248596,1764568238048,-500.0,0.00012873,2]
[395248597,1764568238057,-500.0,0.00012873,2]
[395248598,1764568238067,-201.14127779,0.00012873,2]
[395248599,1764568238076,-500.0,0.00012873,2]
[395248600,1764568238085,-500.0,0.00012873,2]
[395248601,1764568238095,-500.0,0.00012873,2]
[395248602,1764568238104,-164.88068928,0.00012873,2]
[395248603,1764568238113,-500.0,0.00012873,2]
[395248604,1764568238123,-500.0,0.00012873,2]
[395248605,1764568238132,-500.0,0.00012873,2]
[395248606,1764568238142,-500.0,0.00012873,2]
[395248607,1764568238151,-162.47379321,0.00012873,2]
[395248608,1764568238160,-500.0,0.00012873,2]
[395248609,1764568238169,-500.0,0.00012873,2]
[395248610,1764568238179,-1459.46,0.00012873,2]
[395248611,1764568238188,-9999.99,0.00012885,2]
[395248612,1764568238198,-299.99,0.00012885,2]
[395248613,1764568238207,-9999.99,0.00012885,2]
[395248614,1764568238217,-264.05,0.00012885,2]
[395248615,1764568238226,-150.99,0.00012885,2]
[395248616,1764568238236,-2117.34,0.00012885,2]
[395248617,1764568238245,-150.99,0.00012885,2]
[395248618,1764568238254,-263.2,0.00012886,2]
[395248619,1764568238263,-904.6,0.00012886,2]
[395248620,1764568238273,-6110.41,0.00012886,2]
[395248621,1764568238283,-44511.93,0.00012886,2]
[395248622,1764568238292,-9999.99,0.00012886,2]
[395248623,1764568238301,-200.0,0.00012886,2]
[395248624,1764568238311,-151.0,0.00012886,2]
[395248625,1764568238320,-151.0,0.00012886,2]
[395248626,1764568238329,-151.0,0.00012886,2]
[395248627,1764568238339,-151.0,0.00012886,2]
[395248628,1764568238348,-151.0,0.00012886,2]
[395248629,1764568238357,-151.0,0.00012886,2]
[395248630,1764568238366,-500.0,0.00012886,2]
[395248631,1764568238376,-151.0,0.00012886,2]
[395248632,1764568238385,-500.0,0.00012886,2]
[395248633,1764568238394,-151.0,0.00012886,2]
[395248634,1764568238404,-500.0,0.00012886,2]
[395248635,1764568238413,-151.0,0.00012886,2]
[395248636,1764568238422,-500.0,0.00012886,2]
[395248637,1764568238432,-151.0,0.00012886,2]
[395248638,1764568238441,-500.0,0.00012886,2]
[395248639,1764568238450,-151.0,0.00012886,2]
[395248640,1764568238459,-500.0,0.00012886,2]
[395248641,1764568238469,-151.0,0.00012886,2]
[395248642,1764568238478,-500.0,0.00012886,2]
[395248643,1764568238487,-151.0,0.00012886,2]
[395248644,1764568238496,-500.0,0.00012886,2]
[395248645,1764568238506,-151.0,0.00012886,2]
[395248646,1764568238515,-500.0,0.00012886,2]
[395248647,1764568238524,-151.0,0.00012886,2]
[395248648,1764568238533,-500.0,0.00012886,2]
[395248649,1764568238543,-151.0,0.00012886,2]
[395248650,1764568238552,-500.0,0.00012886,2]
[395248651,1764568238561,-151.0,0.00012886,2]
[395248652,1764568238570,-500.0,0.00012886,2]
[395248653,1764568238579,-151.0,0.00012886,2]
[395248654,1764568238588,-500.0,0.00012886,2]
[395248655,1764568238597,-151.0,0.00012886,2]
[395248656,1764568238606,-500.0,0.00012886,2]
[395248657,1764568238615,-151.0,0.00012886,2]
[395248658,1764568238625,-200.0,0.00012886,2]
[395248659,1764568238634,-500.0,0.00012886,2]
[395248660,1764568238642,-500.0,0.00012886,2]
[395248661,1764568238651,-500.0,0.00012886,2]
[395248662,1764568238660,-500.0,0.00012886,2]
[395248663,1764568238669,-500.0,0.00012886,2]
[395248664,1764568238679,-500.0,0.00012886,2]
[395248665,1764568238688,-158.7326939,0.00012886,2]
[395248666,1764568238697,-500.0,0.00012886,2]
[395248667,1764568238706,-500.0,0.00012886,2]
[395248668,1764568238715,-500.0,0.00012886,2]
[395248669,1764568238725,-500.0,0.00012886,2]
[395248670,1764568238734,-500.0,0.00012886,2]
[395248671,1764568238744,-500.0,0.00012886,2]
[395248672,1764568238753,-500.0,0.00012886,2]
[395248673,1764568238762,-500.0,0.00012886,2]
[395248674,1764568238771,-151.0,0.00012886,2]
[395248675,1764568238780,-500.0,0.00012886,2]
[395248676,1764568238790,-151.0,0.00012886,2]
[395248677,1764568238799,-151.0,0.00012886,2]
[395248678,1764568238808,-151.0,0.00012886,2]
[395248679,1764568238817,-151.0,0.00012886,2]
[395248680,1764568238827,-151.0,0.00012886,2]
[395248681,1764568238836,-151.0,0.00012886,2]
[395248682,1764568238846,-151.0,0.00012886,2]
[395248683,1764568238855,-151.0,0.00012886,2]
[395248684,1764568238863,-151.0,0.00012886,2]
[395248685,1764568238873,-151.0,0.00012886,2]
[395248686,1764568238883,-151.0,0.00012886,2]
[395248687,1764568238892,-151.0,0.00012886,2]
[395248688,1764568238901,-151.0,0.00012886,2]
[395248689,1764568238913,-200.0,0.00012886,2]
[395248690,1764568238923,-300.0,0.00012892,2]
[395248691,1764568238932,-1000.0,0.00012893,2]
[395248692,1764568238941,-163.56,0.00013,2]
[395248693,1764568238952,-1459.46,0.00013147,2]
[395248694,1764568238961,-1138.0444,0.00013151,2]
[395248695,1764568238970,-36696.25539655,0.00013249,2]
[395248696,1764568238979,-13970.72633565,0.00013249,2]
[395248697,1764568238990,-1000.0,0.00013421,2]
[395248698,1764568238999,-1000.0,0.00013421,2]
[395248699,1764568239008,-1001.00569167,0.00013421,2]
[395248700,1764568239018,-1000.0,0.00013421,2]
[395248701,1764568239027,-1008.35390567,0.00013421,2]
[395248702,1764568239036,-1009.2603075,0.00013421,2]
[395248703,1764568239045,-1007.34097889,0.00013421,2]
[395248704,1764568239054,-1000.0,0.00013421,2]
[395248705,1764568239063,-1000.0,0.00013421,2]
[395248706,1764568239072,-1000.0,0.00013421,2]
[395248707,1764568239081,-159.45765875,0.00013421,2]
[395248708,1764568239092,-1000.8341776,0.00013421,2]
[395248709,1764568239101,-1000.0,0.00013421,2]
[395248710,1764568239110,-1000.0,0.00013421,2]
[395248711,1764568239120,-1000.0,0.00013421,2]
[395248712,1764568239129,-1000.0,0.00013421,2]
[395248713,1764568239138,-481.4168575,0.00013421,2]
[395248714,1764568239147,-1000.0,0.00013421,2]
[395248715,1764568239156,-1000.0,0.00013421,2]
[395248716,1764568239165,-1000.0,0.00013421,2]
[395248717,1764568239174,-1000.0,0.00013421,2]
[395248718,1764568239183,-503.29972338,0.00013421,2]
[395248719,1764568239192,-1459.46,0.00013421,2]
[395248720,1764568239201,-200.0,0.00013434,2]
[395248721,1764568239211,-500.0,0.00013434,2]
[395248722,1764568239220,-200.0,0.00013434,2]
[395248723,1764568239230,-462.66126224,0.00013569,2]
[395248724,1764568239239,-1931.13207761,0.00013689,2]
[395248725,1764568239249,-1459.46,0.00013695,2]
[395248726,1764568239258,-151.0,0.00013695,2]
[395248727,1764568239267,-500.0,0.00013698,2]
[395248728,1764568239276,-500.0,0.00013698,2]
[395248729,1764568239286,-547.41803348,0.00013698,2]
[395248730,1764568239295,-500.0,0.00013698,2]
[395248731,1764568239304,-331.0821075,0.00013698,2]
[395248732,1764568239315,-500.0,0.00013698,2]
[395248733,1764568239325,-500.0,0.00013698,2]
[395248734,1764568239334,-500.0,0.00013698,2]
[395248735,1764568239345,-500.0,0.00013698,2]
[395248736,1764568239355,-500.0,0.00013698,2]
[395248737,1764568239364,-500.0,0.00013698,2]
[395248738,1764568239373,-500.0,0.00013698,2]
[395248739,1764568239382,-500.0,0.00013698,2]
[395248740,1764568239391,-500.0,0.00013698,2]
[395248741,1764568239400,-500.0,0.00013698,2]
[395248742,1764568239409,-500.0,0.00013698,2]
[395248743,1764568239419,-1703.44,0.00013698,2]
[395248744,1764568239428,-500.0,0.00013698,2]
[395248745,1764568239437,-1703.44,0.00013698,2]
[395248746,1764568239446,-500.0,0.00013698,2]
[395248747,1764568239455,-1703.44,0.00013698,2]
[395248748,1764568239464,-500.0,0.00013698,2]
[395248749,1764568239473,-1703.44,0.00013698,2]
[395248750,1764568239482,-500.0,0.00013698,2]
[395248751,1764568239491,-530.10808563,0.00013698,2]
[395248752,1764568239500,-500.0,0.00013698,2]
[395248753,1764568239509,-500.0,0.00013698,2]
[395248754,1764568239518,-434.2840336,0.00013698,2]
[395248755,1764568239527,-500.0,0.00013698,2]
[395248756,1764568239536,-500.0,0.00013698,2]
[395248757,1764568239545,-500.0,0.00013698,2]
[395248758,1764568239554,-500.0,0.00013698,2]
[395248759,1764568239563,-500.0,0.00013698,2]
[395248760,1764568239572,-500.0,0.00013698,2]
[395248761,1764568239581,-500.0,0.00013698,2]
[395248762,1764568239590,-500.0,0.00013698,2]
[395248763,1764568239599,-500.0,0.00013698,2]
[395248764,1764568239608,-500.0,0.00013698,2]
[395248765,1764568239617,-500.0,0.00013698,2]
[395248766,1764568239626,-500.0,0.00013698,2]
[395248767,1764568239635,-500.0,0.00013698,2]
[395248768,1764568239644,-500.0,0.00013698,2]
[395248770,1764568239653,-500.0,0.00013698,2]
[395248772,1764568239943,-500.0,0.00013698,2]
[395248773,1764568239978,-500.0,0.00013698,2]
[395248774,1764568239989,-500.0,0.00013698,2]
[395248775,1764568239999,-500.0,0.00013698,2]
[395248776,1764568240008,-500.0,0.00013698,2]
[395248777,1764568240018,-500.0,0.00013698,2]
[395248778,1764568240027,-500.0,0.00013698,2]
[395248779,1764568240036,-500.0,0.00013698,2]
[395248780,1764568240045,-500.0,0.00013698,2]
[395248781,1764568240055,-500.0,0.00013698,2]
[395248782,1764568240064,-500.0,0.00013698,2]
[395248784,1764568240073,-500.0,0.00013698,2]
[395248786,1764568240082,-500.0,0.00013698,2]
[395248788,1764568240092,-500.0,0.00013698,2]
[395248790,1764568240101,-559.01212268,0.00013698,2]
[395248792,1764568240110,-4297.35,0.00013698,2]
[395248794,1764568240119,-4297.35,0.00013698,2]
[395248795,1764568240128,-4297.35,0.00013698,2]
[395248796,1764568240137,-4297.35,0.00013698,2]
[395248797,1764568240146,-4297.35,0.00013698,2]
[395248798,1764568240155,-500.0,0.00013698,2]
[395248799,1764568240164,-500.0,0.00013698,2]
[395248800,1764568240173,-500.0,0.00013698,2]
[395248801,1764568240182,-500.0,0.00013698,2]
[395248802,1764568240191,-500.0,0.00013698,2]
[395248803,1764568240200,-500.0,0.00013698,2]
[395248804,1764568240209,-500.0,0.00013698,2]
[395248805,1764568240218,-500.0,0.00013698,2]
[395248806,1764568240227,-500.0,0.00013698,2]
[395248807,1764568240237,-500.0,0.00013698,2]
[395248808,1764568240246,-500.0,0.00013698,2]
[395248809,1764568240255,-500.0,0.00013698,2]
[395248810,1764568240264,-500.0,0.00013698,2]
[395248811,1764568240275,-1190.72,0.00013698,2]
[395248812,1764568240284,-1190.72,0.00013698,2]
[395248813,1764568240293,-1190.72,0.00013698,2]
[395248814,1764568240302,-1190.72,0.00013698,2]
[395248815,1764568240311,-1190.72,0.00013698,2]
[395248816,1764568240320,-1190.72,0.00013698,2]
[395248817,1764568240329,-1190.72,0.00013698,2]
[395248818,1764568240338,-1190.72,0.00013698,2]
[395248819,1764568240347,-1190.72,0.00013698,2]
[395248820,1764568240357,-1190.72,0.00013698,2]
[395248821,1764568240366,-1190.72,0.00013698,2]
[395248822,1764568240375,-1190.72,0.00013698,2]
[395248823,1764568240385,-1190.72,0.00013698,2]
[395248824,1764568240394,-1190.72,0.00013698,2]
[395248825,1764568240403,-1190.72,0.00013698,2]
[395248826,1764568240413,-1190.72,0.00013698,2]
[395248827,1764568240422,-1190.72,0.00013698,2]
[395248828,1764568240432,-1190.72,0.00013698,2]
[395248829,1764568240441,-1190.72,0.00013698,2]
[395248830,1764568240450,-1190.72,0.00013698,2]
[395248831,1764568240459,-1190.72,0.00013698,2]
[395248832,1764568240469,-1190.72,0.00013698,2]
[395248833,1764568240478,-1190.72,0.00013698,2]
[395248834,1764568240487,-1190.87522195,0.00013698,2]
[395248835,1764568240496,-500.0,0.00013698,2]
[395248836,1764568240505,-500.0,0.00013698,2]
[395248837,1764568240515,-500.0,0.00013698,2]
[395248838,1764568240524,-500.0,0.00013698,2]
[395248839,1764568240533,-500.0,0.00013698,2]
[395248840,1764568240542,-500.0,0.00013698,2]
[395248841,1764568240551,-507.44536732,0.00013698,2]
[395248842,1764568240560,-500.0,0.00013698,2]
[395248843,1764568240569,-500.0,0.00013698,2]
[395248844,1764568240579,-500.0,0.00013698,2]
[395248845,1764568240590,-500.0,0.00013698,2]
[395248846,1764568240600,-500.0,0.00013698,2]
[395248847,1764568240610,-500.0,0.00013698,2]
[395248848,1764568240620,-500.0,0.00013698,2]
[395248849,1764568240629,-500.0,0.00013698,2]
[395248850,1764568240639,-484.18397562,0.00013698,2]
[395248851,1764568240648,-500.0,0.00013698,2]
[395248852,1764568240657,-500.0,0.00013698,2]
[395248853,1764568240666,-500.0,0.00013698,2]
[395248854,1764568240677,-500.0,0.00013698,2]
[395248855,1764568240687,-500.0,0.00013698,2]
[395248856,1764568240696,-698.84,0.00013698,2]
[395248857,1764568240706,-500.0,0.00013698,2]
[395248858,1764568240715,-500.0,0.00013698,2]
[395248859,1764568240724,-500.0,0.00013698,2]
[395248860,1764568240733,-500.0,0.00013698,2]
[395248861,1764568240743,-500.0,0.00013698,2]
[395248862,1764568240752,-567.86060721,0.00013698,2]
[395248863,1764568240761,-500.0,0.00013698,2]
[395248864,1764568240771,-500.0,0.00013698,2]
[395248865,1764568240780,-500.0,0.00013698,2]
[395248866,1764568240789,-500.0,0.00013698,2]
[395248867,1764568240798,-500.0,0.00013698,2]
[395248868,1764568240807,-500.0,0.00013698,2]
[395248869,1764568240816,-500.0,0.00013698,2]
[395248870,1764568240825,-500.0,0.00013698,2]
[395248871,1764568240834,-413.92477484,0.00013698,2]
[395248872,1764568240844,-500.0,0.00013698,2]
[395248873,1764568240853,-500.0,0.00013698,2]
[395248874,1764568240862,-501.94091737,0.00013698,2]
[395248875,1764568240871,-500.0,0.00013698,2]
[395248876,1764568240880,-500.0,0.00013698,2]
[395248877,1764568240889,-500.0,0.00013698,2]
[395248878,1764568240898,-500.0,0.00013698,2]
[395248879,1764568240907,-500.0,0.00013698,2]
[395248880,1764568240920,-593.21617524,0.00013698,2]
[395248881,1764568240929,-500.0,0.00013698,2]
[395248882,1764568240938,-500.0,0.00013698,2]
[395248883,1764568240948,-500.0,0.00013698,2]
[395248884,1764568240958,-500.0,0.00013698,2]
[395248885,1764568240967,-500.0,0.00013698,2]
[395248886,1764568240976,-500.0,0.00013698,2]
[395248887,1764568240987,-500.0,0.00013698,2]
[395248888,1764568240996,-500.0,0.00013698,2]
[395248889,1764568241005,-500.0,0.00013698,2]
[395248890,1764568241014,-500.0,0.00013698,2]
[395248891,1764568241023,-500.0,0.00013698,2]
[395248892,1764568241032,-500.0,0.00013698,2]
[395248893,1764568241041,-500.0,0.00013698,2]
[395248894,1764568241051,-500.0,0.00013698,2]
[395248895,1764568241060,-500.0,0.00013698,2]
[395248896,1764568241070,-500.0,0.00013698,2]
[395248897,1764568241079,-500.0,0.00013698,2]
[395248898,1764568241089,-500.0,0.00013698,2]
[395248899,1764568241098,-500.0,0.00013698,2]
[395248900,1764568241107,-500.0,0.00013698,2]
[395248901,1764568241116,-500.0,0.00013698,2]
[395248902,1764568241125,-500.0,0.00013698,2]
[395248903,1764568241134,-500.0,0.00013698,2]
[395248904,1764568241143,-500.0,0.00013698,2]
[395248905,1764568241152,-500.0,0.00013698,2]
[395248906,1764568241161,-500.0,0.00013698,2]
[395248907,1764568241170,-500.0,0.00013698,2]
[395248908,1764568241179,-500.0,0.00013698,2]
[395248909,1764568241188,-500.0,0.00013698,2]
[395248910,1764568241197,-300.0,0.00013698,2]
[395248911,1764568241207,-500.0,0.00013698,2]
[395248912,1764568241216,-300.0,0.00013698,2]
[395248913,1764568241225,-300.0,0.00013698,2]
[395248914,1764568241234,-349.89110636,0.00013698,2]
[395248915,1764568241243,-859.47,0.00013698,2]
[395248916,1764568241252,-859.47,0.00013698,2]
[395248917,1764568241261,-859.47,0.00013698,2]
[395248918,1764568241271,-500.0,0.00013698,2]
[395248919,1764568241280,-500.0,0.00013698,2]
[395248920,1764568241290,-500.0,0.00013698,2]
[395248921,1764568241299,-500.0,0.00013698,2]
[395248922,1764568241308,-500.0,0.00013698,2]
[395248923,1764568241317,-500.0,0.00013698,2]
[395248924,1764568241326,-500.0,0.00013698,2]
[395248925,1764568241335,-500.0,0.00013698,2]
[395248926,1764568241345,-500.0,0.00013698,2]
[395248927,1764568241354,-500.0,0.00013698,2]
[395248928,1764568241363,-628.88445166,0.00013698,2]
[395248929,1764568241372,-500.0,0.00013698,2]
[395248930,1764568241382,-500.0,0.00013698,2]
[395248931,1764568241392,-500.0,0.00013698,2]
[395248932,1764568241402,-500.0,0.00013698,2]
[395248933,1764568241411,-500.0,0.00013698,2]
[395248934,1764568241420,-500.0,0.00013698,2]
[395248935,1764568241430,-3444.64,0.00013699,2]
[395248936,1764568241439,-944.83,0.00013699,2]
[395248937,1764568241449,-232.46,0.00013699,2]
[395248938,1764568241458,-600.0,0.00013699,2]
[395248939,1764568241468,-19443.82,0.00013699,2]
[395248940,1764568241477,-9999.99,0.00013699,2]
[395248941,1764568241486,-298.7055491,0.00013699,2]
[395248942,1764568241495,-541.73135515,0.00013705,2]
[395248943,1764568241504,-500.0,0.00013705,2]
[395248944,1764568241513,-500.0,0.00013705,2]
[395248945,1764568241522,-859.47,0.00013705,2]
[395248946,1764568241532,-36696.25539655,0.00013706,2]
[395248947,1764568241541,-13970.72633565,0.00013706,2]
[395248948,1764568241550,-1536.0,0.00013709,2]
[395248949,1764568241559,-420.0,0.00013709,2]
[395248950,1764568241568,-500.0,0.00013738,2]
[395248951,1764568241577,-1680.0,0.00013743,2]
[395248952,1764568241586,-193.0,0.00013743,2]
[395248953,1764568241595,-195.0,0.00013743,2]
[395248954,1764568241605,-300.0,0.00013743,2]
[395248955,1764568241614,-300.0,0.00013743,2]
[395248956,1764568241623,-300.0,0.00013743,2]
[395248957,1764568241632,-300.0,0.00013743,2]
[395248958,1764568241641,-300.0,0.00013743,2]
[395248959,1764568241650,-300.0,0.00013743,2]
[395248960,1764568241660,-300.0,0.00013743,2]
[395248961,1764568241669,-300.0,0.00013743,2]
[395248962,1764568241678,-300.0,0.00013743,2]
[395248963,1764568241687,-300.0,0.00013743,2]
[395248964,1764568241696,-195.0,0.00013743,2]
[395248965,1764568241706,-250.0,0.00013743,2]
[395248966,1764568241715,-195.0,0.00013743,2]
[395248967,1764568241724,-726.0,0.00013789,2]
[395248968,1764568241733,-399.0,0.00013789,2]
[395248969,1764568241742,-200.0,0.00013812,2]
[395248970,1764568241751,-420.0,0.00013816,2]
[395248971,1764568241760,-240.86739996,0.00013816,2]
[395248972,1764568241769,-873.0,0.00013819,2]
[395248973,1764568241779,-557.66083648,0.00013837,2]
[395248974,1764568241788,-195.0,0.00013875,2]
[395248975,1764568241797,-255.0,0.00013892,2]
[395248976,1764568241806,-1459.46,0.00013968,2]
[395248977,1764568241815,-502.31396742,0.00013968,2]
[395248978,1764568241824,-1195.52666433,0.00013968,2]
[395248979,1764568241833,-475.59481342,0.00013968,2]
[395248980,1764568241842,-500.0,0.00013968,2]
[395248981,1764568241851,-1500.0,0.00013968,2]
[395248982,1764568241860,-1500.0,0.00013968,2]
[395248983,1764568241869,-458.41629171,0.00013968,2]
[395248984,1764568241879,-501.51277925,0.00013968,2]
[395248985,1764568241889,-1500.0,0.00013968,2]
[395248986,1764568241899,-1005.38598861,0.00013968,2]
[395248987,1764568241910,-1500.0,0.00013968,2]
[395248988,1764568241921,-1500.0,0.00013968,2]
[395248989,1764568241930,-698.84,0.00013972,3]
[395248990,1764568241939,-200.0,0.00013982,2]
[395248991,1764568241948,-500.0,0.00013982,2]
[395248992,1764568241958,-200.0,0.00013982,2]
[395248993,1764568241968,-1703.44,0.00014021,2]
[395248994,1764568241977,-500.0,0.00014021,2]
[395248995,1764568241986,-36696.25539655,0.00014162,2]
[395248996,1764568241997,-13970.72633565,0.00014162,2]
[395248997,1764568242007,-1000.0,0.00014191,2]
[395248998,1764568242018,-1600.0,0.00014234,2]
[395248999,1764568242028,-1459.46,0.00014242,2]
[395249000,1764568242037,-600.0,0.00014247,2]
[395249001,1764568242047,-1459.46,0.00014516,2]
[395249002,1764568242056,-1005.67913008,0.00014516,2]
[395249003,1764568242065,-2000.0,0.00014516,2]
[395249004,1764568242074,-2000.0,0.00014516,2]
[395249005,1764568242083,-2000.0,0.00014516,2]
[395249006,1764568242092,-1000.0,0.00014516,2]
[395249007,1764568242101,-698.84,0.0001452,5]
[395249008,1764568242110,-151.0,0.00014521,2]
[395249009,1764568242120,-200.0,0.0001453,2]
[395249010,1764568242129,-500.0,0.0001453,2]
[395249011,1764568242138,-200.0,0.0001453,2]
[395249012,1764568242147,-36696.25539655,0.00014618,2]
[395249013,1764568242157,-13970.72633565,0.00014618,2]
[395249014,1764568242166,-1459.46,0.0001479,2]
[395249015,1764568242175,-698.84,0.00014794,6]
[395249016,1764568242184,-600.0,0.00014795,2]
[395249017,1764568242193,-500.0,0.0001481,2]
[395249018,1764568242203,-500.0,0.00014919,2]
[395249019,1764568242212,-500.0,0.00014919,2]
[395249020,1764568242222,-500.0,0.00014919,2]
[395249021,1764568242232,-500.0,0.00014919,2]
[395249022,1764568242242,-500.0,0.00014919,2]
[395249023,1764568242252,-500.0,0.00014919,2]
[395249024,1764568242262,-500.0,0.0001492,2]
[395249025,1764568242271,-500.0,0.0001492,2]
[395249026,1764568242281,-500.0,0.0001492,2]
[395249027,1764568242291,-500.0,0.0001492,2]
[395249028,1764568242300,-500.0,0.0001492,2]
[395249029,1764568242310,-4297.35,0.0001492,2]
[395249030,1764568242319,-500.0,0.0001492,2]
[395249031,1764568242328,-500.0,0.0001492,2]
[395249032,1764568242338,-500.0,0.0001492,2]
[395249033,1764568242347,-500.0,0.0001492,2]
[395249034,1764568242357,-500.0,0.0001492,2]
[395249035,1764568242367,-269.91867043,0.0001492,2]
[395249036,1764568242377,-500.0,0.00014999,2]
[395249037,1764568242386,-150512.11,0.00015,2]
[395249038,1764568242395,-587.0,0.00015041,2]
[395249039,1764568242405,-1459.46,0.00015064,2]
[395249040,1764568242415,-1500.0,0.00015064,2]
[395249041,1764568242424,-1500.0,0.00015064,2]
[395249042,1764568242433,-2500.0,0.00015064,2]
[395249043,1764568242442,-698.84,0.00015068,7]
[395249044,1764568242451,-151.0,0.00015069,2]
[395249045,1764568242461,-36696.25539655,0.00015075,2]
[395249046,1764568242470,-13970.72633565,0.00015075,2]
[395249047,1764568242479,-200.0,0.00015078,2]
[395249049,1764568242488,-500.0,0.00015078,2]
[395249051,1764568242497,-200.0,0.00015078,2]
[395249052,1764568242507,-433.0,0.00015082,2]
[395249053,1764568242516,-2351.0,0.00015118,2]
[395249054,1764568242526,-1250.0,0.00015184,2]
[395249055,1764568242535,-832.0,0.00015184,2]
[395249056,1764568242544,-153.0,0.00015184,2]
[395249057,1764568242553,-153.0,0.00015184,2]
[395249058,1764568242562,-1703.44,0.00015254,2]
[395249059,1764568242571,-150.00000001,0.00015288,2]
[395249060,1764568242580,-163.70980013,0.00015288,2]
[395249061,1764568242589,-150.0,0.00015288,2]
[395249063,1764568242599,-150.0,0.00015288,2]
[395249064,1764568242608,-150.0,0.00015288,2]
[395249065,1764568242617,-150.0,0.00015288,2]
[395249066,1764568242625,-150.0,0.00015288,2]
[395249067,1764568242634,-226.79835367,0.00015288,2]
[395249068,1764568242643,-150.0,0.00015288,2]
[395249070,1764568242652,-150.0,0.00015288,2]
[395249072,1764568242662,-150.0,0.00015288,2]
[395249074,1764568242671,-150.0,0.00015288,2]
[395249076,1764568242680,-150.0,0.00015288,2]
[395249078,1764568242689,-150.0,0.00015288,2]
[395249080,1764568242699,-190.82998658,0.00015288,2]
[395249081,1764568242708,-150.0,0.00015288,2]
[395249082,1764568242717,-150.0,0.00015288,2]
[395249083,1764568242726,-163.70980013,0.00015305,2]
[395249084,1764568242735,-226.79835367,0.00015305,2]
[395249085,1764568242743,-150.0,0.0001531,2]
[395249086,1764568242752,-150.0,0.00015313,2]
[395249087,1764568242762,-150.0,0.00015316,2]
[395249088,1764568242770,-150.0,0.00015317,2]
[395249089,1764568242780,-163.70980013,0.00015322,2]
[395249090,1764568242789,-226.79835367,0.00015322,2]
[395249091,1764568242798,-150.0,0.00015332,2]
[395249092,1764568242806,-150.0,0.00015338,2]
[395249093,1764568242815,-1459.46,0.00015338,2]